Cogmind - Beta 11.1 @@@ ROGUE MODE // 2022.06.01 @ 12:13:51 Player: btmk16 Result: Self-destructed Performance ------------- Evolutions (7) 3500 Regions Visited (12) 2400 Robots Destroyed (176) 880 Value Destroyed (6498) 6498 Prototype IDs (18) 360 Alien Tech Used (0) 0 Bonus (482) 482 TOTAL SCORE: 14120 Bonus ------- Follower Combat Kills 196 Met Data Miner 300 Friendly Fire -14 Cogmind --------- Core Integrity 913/1300 Matter 24/300 Energy 180/180 System Corruption 13% Temperature Cool (0) Movement Hovering (55) Location -3/Research Parts ------- > --- POWER (2) -------- Light Particle Reactor > --- PROPULSION (6) --- Improved Antigrav System Cooled Antigrav System Combat Antigrav System > --- UTILITY (10) ----- Advanced Heat Sink Improved Transmission Jammer > --- WEAPON (3) ------- (None) > --- INVENTORY (5) ---- Light Particle Reactor Improved Cloaking Device Faulty Experimental EM Disruption Field Long-range Missile Launcher Peak State ------------ > --- POWER ------------ Cold Fusion Reactor Neutrino Core > --- PROPULSION ------- Armored Treads Medium Treads Armored Medium Treads Armored Medium Treads Armored Medium Treads Armored Medium Treads > --- UTILITY ---------- Huge Storage Unit Improved Signal Interpreter Improved Kinecellerator Improved Transmission Jammer Heavy Armor Plating Layered Medium Armor Plating Advanced System Shield > --- WEAPON ----------- Magnetic Acceleration Cannon Enhanced Gauss Cannon Hypervelocity Gauss Cannon > --- INVENTORY -------- Light Antimatter Reactor Armored Treads Armored Treads Medium Treads Advanced Heat Sink Structural Scanner Improved Sensor Array Hardened Heavy Armor Plating Advanced Drone Bay Advanced Plasma Cannon Advanced Plasma Cannon Hypervelocity Coil Gun Hypervelocity Coil Gun Magnetic Acceleration Cannon Bore Cannon Mass Driver Long-range Missile Launcher Smartbomb Launcher Thunder Hammer [Rating: 104] Favorites ----------- Power Cold Fusion Reactor Engine Heavy Ion Engine Power Core Micro Nuclear Core Reactor Cold Fusion Reactor Propulsion Armored Treads Treads Armored Treads Leg Flexi-carbon Leg Hover Unit Combat Antigrav System Flight Unit Impulse Thruster Utility Improved Signal Interpreter Device Improved Sensor Array Storage Large Storage Unit Processor Improved Signal Interpreter Hackware Advanced System Shield Protection Hardened Light Armor Plating Weapon Plasma Cannon Energy Gun Spread Laser Energy Cannon Plasma Cannon Ballistic Gun Heavy Assault Rifle Ballistic Cannon Hypervelocity Gauss Cannon Launcher Long-range Missile Launcher Impact Weapon Great Maul Slashing Weapon Katana Piercing Weapon Force Lance Build | -11 -10 -9 -8 -7 -7 -7 -7 -6 -6 -5 -4 -3 ------- Run | Scr Mat Mat Mat Fac Low Low Dat Pro Fac Fac Fac Res Slots Evolved 14 | . . 2 2 2 . . . . 2 2 2 2 Power 1 | . . . . . . . . . . . 1 . Propulsion 4 | . . 1 . 1 . . . . . 2 . . Utility 8 | . . 1 2 1 . . . . 2 . . 2 Weapon 1 | . . . . . . . . . . . 1 . Parts Attached 190 | . 6 14 29 22 4 5 . 11 17 40 33 9 Power 16 | . 1 2 1 3 . 1 . 1 1 . 4 2 Engine 8 | . 1 2 1 1 . 1 . 1 . . 1 . Core 3 | . . . . 2 . . . . . . 1 . Reactor 5 | . . . . . . . . . 1 . 2 2 Propulsion 48 | . 2 2 8 4 . . . 1 5 12 10 4 Treads 35 | . 2 2 8 4 . . . 1 5 11 2 . Leg 1 | . . . . . . . . . . 1 . . Wheel . | . . . . . . . . . . . . . Hover 3 | . . . . . . . . . . . . 3 Flight 9 | . . . . . . . . . . . 8 1 Utility 61 | . 2 1 9 8 2 2 . 1 6 16 12 2 Device 29 | . . . 4 5 1 1 . 1 2 7 7 1 Storage 7 | . 1 . . 1 . 1 . . 2 2 . . Processor 8 | . 1 . 2 1 . . . . 1 . 2 1 Hackware 2 | . . . . . . . . . . 2 . . Protection 15 | . . 1 3 1 1 . . . 1 5 3 . Artifact . | . . . . . . . . . . . . . Weapon 65 | . 1 9 11 7 2 2 . 8 5 12 7 1 Energy Gun 9 | . . 2 5 2 . . . . . . . . Energy Cannon 9 | . . . . 2 1 1 . 1 2 . 2 . Ballistic Gun 11 | . 1 5 2 1 . . . . . 1 1 . Ballistic Cannon 16 | . . . . . . 1 . 3 3 8 1 . Launcher 13 | . . 2 2 1 1 . . 4 . 1 1 1 Special Weapon . | . . . . . . . . . . . . . Impact Weapon 2 | . . . 1 . . . . . . 1 . . Slashing Weapon 2 | . . . 1 1 . . . . . . . . Piercing Weapon 3 | . . . . . . . . . . 1 2 . Special Melee Weapon . | . . . . . . . . . . . . . Unidentified Prototypes 8 | . . 1 . . . . . . 1 2 1 3 Corrupted Parts 1 | . . . . . . . . . . 1 . . System Corruption 2 | . . . . . . . . . . 2 . . Parts Lost 53 | . . . 9 5 1 2 . 1 1 9 14 11 Power 3 | . . . 1 1 . . . . . . . 1 Propulsion 19 | . . . 3 . . . . . . 3 8 5 Utility 22 | . . . 3 3 1 1 . . . 6 4 4 Weapon 9 | . . . 2 1 . 1 . 1 1 . 2 1 Highest Loss Streak 9 | . . . 5 2 1 2 . 1 1 3 9 8 To Critical Strikes . | . . . . . . . . . . . . . Average Slot Usage (%) 94 | . 99 95 99 99 100 100 100 100 93 94 74 36 Engine 4 | . 14 11 9 5 . 2 7 7 . . . . Core 1 | . . . . 1 7 4 . . . . 3 . Reactor 1 | . . . . . . . . . 5 5 4 1 Treads 26 | . 11 29 26 30 30 30 30 30 25 29 19 . Leg 1 | . 16 . . . . . . . . 2 . . Device 12 | . . . 9 17 15 21 23 23 18 11 8 12 Storage 8 | . 14 11 9 7 7 8 7 7 11 10 3 . Processor 11 | . 13 11 18 15 15 15 15 15 13 6 4 5 Protection 5 | . . 10 8 4 6 . . . 3 7 6 . Energy Gun 3 | . 14 11 11 4 . . . . . . . . Energy Cannon 2 | . . . . 2 6 7 7 6 4 . . . Ballistic Gun 3 | . 14 11 2 7 7 . . . . 1 . . Ballistic Cannon 3 | . . . . . . 6 7 7 8 8 7 . Naked Turns 14 | . . . . . . . . . . . 14 . Heaviest Build 162 | 12 27 39 40 44 42 46 41 47 71 140 162 27 Greatest Support 156 | 20 40 60 60 88 88 88 88 88 96 156 156 41 Greatest Overweight (x) 7 | . . . . . . . . . . 1 3 7 Average Overweight (x) . | . . . . . . . . . . . . . Largest Inventory Capacity 25 | . 15 15 15 15 15 15 15 15 15 25 25 5 Average Capacity 16 | . 11 15 15 15 15 15 15 15 15 24 17 5 Most Carried 25 | . 10 15 15 15 15 15 15 15 15 25 25 5 Average Carried 16 | . 8 14 14 14 14 14 15 14 14 22 15 3 Final Capacity 25 | 8 15 15 15 15 15 15 15 15 15 25 5 5 Final Carried 20 | 6 10 15 15 15 14 15 15 15 14 20 4 4 Class Distribution -------------------- 37% | Mutant 26% | Skirmisher 24% | Scavenger-Mutant 6% | Scavenger-Skirmisher Dominant Class ---------------- Mutant | -10/Materials Scavenger-Mutant | -9/Materials Scavenger-Mutant | -8/Materials Skirmisher | -7/Factory Mutant | -7/Lower Caves Skirmisher | -7/Lower Caves Skirmisher | -7/Data Miner Skirmisher | -6/Proximity Caves Skirmisher | -6/Factory Mutant | -5/Factory Mutant | -4/Factory Mutant | -3/Research Resources | -11 -10 -9 -8 -7 -7 -7 -7 -6 -6 -5 -4 -3 ----------- Run | Scr Mat Mat Mat Fac Low Low Dat Pro Fac Fac Fac Res Matter Collected 5213 | 200 312 301 456 535 248 64 . 269 285 1858 685 . Remotely . | . . . . . . . . . . . . . Salvage Created 6770 | . 446 826 1103 1120 679 . . 246 792 855 703 . Parts 307 | . 22 72 35 51 23 . . 16 19 39 30 . Haulers Intercepted 10 | . 1 4 3 1 . . . . 1 . . . Recyclers Shooed 11 | . . 3 1 . . . . . 2 3 2 . Parts Field Recycled . | . . . . . . . . . . . . . Retrieved Matter . | . . . . . . . . . . . . . Parts Self-Destructed 48 | . . . . . 19 4 . 25 . . . . Prevented 3 | . . . . . 3 . . . . . . . Kills | -11 -10 -9 -8 -7 -7 -7 -7 -6 -6 -5 -4 -3 ------- Run | Scr Mat Mat Mat Fac Low Low Dat Pro Fac Fac Fac Res Combat Hostiles Destroyed 133 | . 11 16 24 23 9 . . 11 11 18 10 . Melee 1 | . . . . . . . . . . . 1 . Guns 58 | . 11 9 18 17 3 . . . . . . . Cannons 43 | . . . . 3 4 . . 3 10 15 8 . AOE 29 | . . 7 5 3 2 . . 8 . 3 1 . Classes Destroyed 17 | . 3 6 1 2 1 . . . 1 1 2 . Worker 13 | . . 1 . 2 . . . . . 2 8 . Builder 7 | . . 2 1 2 . . . . . 2 . . Tunneler 1 | . . . . . . . . . . . 1 . Hauler 10 | . 1 4 3 1 . . . . 1 . . . Recycler 6 | . . 1 2 . . . . . 2 1 . . Mechanic 1 | . . . . 1 . . . . . . . . Watcher 5 | . . 2 . 1 . . . . 1 1 . . Swarmer 24 | . 2 3 4 . 4 . . 8 3 . . . Grunt 64 | . 9 8 13 16 2 . . 3 5 7 1 . Brawler 4 | . . . 1 1 1 . . . . . 1 . Duelist 3 | . . 1 . 1 . . . . . . 1 . Sentry 15 | . . 4 6 . 1 . . . 1 2 1 . Hunter 5 | . . . . . . . . . . . 5 . Programmer 16 | . . . . 5 1 . . . 1 8 1 . Heavy 1 | . . . . . . . . . . 1 . . Behemoth 1 | . . . . . . . . . 1 . . . Samaritan 3 | . . . . . 3 . . . . . . . Best Kill Streak 8 | . 3 8 7 7 5 . . 4 5 4 5 . Combat Bots Only 7 | . 3 7 6 4 5 . . 4 3 3 4 . Max Kills in Single Turn 3 | . 1 3 3 2 1 . . 2 1 2 2 . Gunslinging 1 | . . 1 . . . . . . . . . . Exploded 3 | . . 3 2 1 1 . . 2 . 2 1 . Melee 1 | . . . . . . . . . . . 1 . Uniques/NPCs Destroyed . | . . . . . . . . . . . . . Combat | -11 -10 -9 -8 -7 -7 -7 -7 -6 -6 -5 -4 -3 -------- Run | Scr Mat Mat Mat Fac Low Low Dat Pro Fac Fac Fac Res Damage Taken 13255 | . 552 716 2007 1176 437 109 . 563 764 2215 3504 1212 Core 1687 | . 188 122 228 135 34 . . 63 106 80 344 387 Absorbed by Shields 121 | . . . . 28 . . . . . . . 93 Redirected to Shielding 15 | . . . . 12 3 . . . . . . . Core Remaining (%) 70 | 100 24 69 58 . . . . 66 87 92 70 . Volleys Fired 508 | . 52 47 96 73 35 2 . 16 43 85 59 . Largest 3 | . 2 2 2 2 2 2 . 2 2 2 3 . Hottest 196 | . 60 88 130 105 105 149 . 128 160 118 196 . Shots Fired 943 | . 104 84 174 135 71 7 . 25 85 164 94 . Gun 519 | . 104 78 169 116 35 1 . . . 8 8 . Cannon 397 | . . . . 15 33 6 . 18 85 154 86 . Launcher 27 | . . 6 5 4 3 . . 7 . 2 . . Special . | . . . . . . . . . . . . . Kinetic 524 | . 52 40 44 70 35 2 . 9 41 162 69 . Thermal 386 | . 52 38 125 56 33 4 . 9 44 . 25 . Explosive 27 | . . 6 5 4 3 . . 7 . 2 . . Electromagnetic 6 | . . . . 5 . 1 . . . . . . Robot Hit Streak 24 | . 15 13 24 16 12 1 . 5 23 11 13 . Robot Miss Streak 6 | . 4 6 6 3 4 3 . 1 3 5 6 . Penetration Max 1 | . . . . . . . . . . 1 1 . Secondary Targets 4 | . 2 1 . 1 . . . . . . . . Max Gunslinging Chain 1 | . 1 1 . 1 . . . . . . . . Shots Hit Robots 652 | . 71 62 152 106 44 1 . 14 52 88 61 1 Core Hits 405 | . 28 61 105 69 26 . . 19 27 41 29 . Critical Kills 20 | . . . . . . . . . 2 11 7 . Critical Parts Destroyed 39 | . . . 1 . . . . . . 26 12 . Critical Strikes 72 | . . . 4 . . 1 . 1 3 40 23 . Burn 3 | . . . 3 . . . . . . . . . Meltdown 2 | . . . . . . . . . 2 . . . Destroy 56 | . . . . . . . . . . 37 19 . Blast 8 | . . . . . . . . 1 1 3 3 . Corrupt 1 | . . . . . . 1 . . . . . . Smash 1 | . . . 1 . . . . . . . . . Impale 1 | . . . . . . . . . . . 1 . Melee Attacks 34 | . . . 2 1 . . . . . 6 14 11 Impact 2 | . . . 2 . . . . . . . . . Slashing 1 | . . . . 1 . . . . . . . . Piercing 31 | . . . . . . . . . . 6 14 11 Sneak Attacks 6 | . . . 2 . . . . . . . 3 1 Combat Hostiles . | . . . . . . . . . . . . . Follow-up Attacks . | . . . . . . . . . . . . . Damage Inflicted 16954 | . 699 1440 3042 2718 1336 24 . 864 1693 3023 2043 72 Guns 6094 | . 699 893 2181 1846 288 . . . . 133 54 . Cannons 6903 | . . . . 317 645 24 . 357 1523 2574 1463 . Explosions 3273 | . . 510 707 555 403 . . 507 141 269 181 . Melee 565 | . . . 149 . . . . . . . 344 72 Ramming 119 | . . 37 5 . . . . . 29 47 1 . Kinetic 7095 | . 309 383 541 765 288 . . 198 778 2707 1126 . Thermal 5779 | . 390 510 1640 1299 645 . . 159 745 . 391 . Explosive 3229 | . . 510 707 555 403 . . 507 97 269 181 . Electromagnetic 167 | . . . . 99 . 24 . . 44 . . . Impact 149 | . . . 149 . . . . . . . . . Slashing . | . . . . . . . . . . . . . Piercing 416 | . . . . . . . . . . . 344 72 Highest Corruption 13 | . . . . 5 5 5 5 5 2 4 2 13 Average Corruption 3 | . . . . 3 5 5 5 5 2 2 1 8 Corruption Purged 5 | . . . . . . . . . . 5 . . Corruption Blocked 6 | . . . . . . . . . . 6 . . Effects 137 | . . . . 23 23 15 3 23 10 35 . 5 Message Errors 28 | . . . . 4 7 3 1 5 1 7 . . Matter Fused 26 | . . . . 7 5 2 1 4 1 6 . . Heat Flow Errors 19 | . . . . 4 3 1 . 5 2 4 . . Energy Discharges 19 | . . . . 2 2 4 1 3 2 2 . 3 Parts Rejected 3 | . . . . . . . . 1 2 . . . Data Loss (minor) 20 | . . . . 5 1 2 . 3 1 7 . 1 Data Loss (major) 2 | . . . . . . . . 1 . 1 . . Misfires 12 | . . . . 1 4 3 . . . 4 . . Alerts 6 | . . . . . 1 . . 1 . 3 . 1 Weapon Failures 2 | . . . . . . . . . 1 1 . . Overload Shots . | . . . . . . . . . . . . . Overflow Damage 512 | . . 21 131 3 84 . . . 23 55 163 32 Projectiles 214 | . . . . . 84 . . . 16 55 59 . Explosions 90 | . . 21 59 3 . . . . 7 . . . Melee 208 | . . . 72 . . . . . . . 104 32 Knockbacks 38 | . . . . . . . . 1 8 16 13 . Impact . | . . . . . . . . . . . . . Kinetic 35 | . . . . . . . . 1 7 16 11 . Secondary 3 | . . . . . . . . . 1 . 2 . Self-Inflicted Damage 452 | . . 19 192 . 101 . . 32 108 . . . Shots 11 | . . 2 4 . 3 . . 1 1 . . . Rammed 12 | . . 4 2 . . . . . 1 4 1 . Targets Rammed 14 | . . 5 2 . . . . . 1 4 2 . Kicked . | . . . . . . . . . . . . . Crushed 2 | . . 1 . . . . . . . . 1 . Highest Temperature 487 | . 144 344 306 175 299 106 . 274 178 234 487 . Average Temperature 102 | . 43 86 78 46 57 54 . 115 59 101 164 . Received Heat Transfer 2680 | . 249 309 837 350 90 . . 210 160 243 223 9 Effects 20 | . . . 2 . 1 . . . . 3 14 . Shutdowns 3 | . . . . . . . . . . . 3 . Energy Bleed 3 | . . . 2 . 1 . . . . . . . Interference 6 | . . . . . . . . . . 3 3 . Matter Decay 3 | . . . . . . . . . . . 3 . Short Circuit 3 | . . . . . . . . . . . 3 . Damage (minor) 2 | . . . . . . . . . . . 2 . Siege Activations . | . . . . . . . . . . . . . Robots Corrupted . | . . . . . . . . . . . . . Combat Hostiles . | . . . . . . . . . . . . . Parts Fried . | . . . . . . . . . . . . . Impact Corruptions 1 | . . . 1 . . . . . . . . . Robots Melted 3 | . . . 1 . . . . . 2 . . . Combat Hostiles 2 | . . . 1 . . . . . 1 . . . Parts Melted 22 | . 1 1 5 6 2 . . . 6 . 1 . Heat Transferred 11380 | . 875 809 3321 2775 1250 . . 300 1450 . 600 . Parts Sabotaged . | . . . . . . . . . . . . . Parts Stolen . | . . . . . . . . . . . . . Parts Stripped . | . . . . . . . . . . . . . Power Chain Reactions . | . . . . . . . . . . . . . Missiles Intercepted . | . . . . . . . . . . . . . Alert | -11 -10 -9 -8 -7 -7 -7 -7 -6 -6 -5 -4 -3 ------- Run | Scr Mat Mat Mat Fac Low Low Dat Pro Fac Fac Fac Res Peak Influence 567 | . 287 389 320 346 . . . . 363 304 567 334 Initial 302 | . . 78 98 123 . . . . 103 124 148 302 Average 165 | . 134 188 143 179 . . . . 242 96 311 178 Maximum Alert Level 2 | . 1 1 1 1 . . . . 1 1 2 1 Low Security (%) 67 | . 78 48 71 72 . . . . 29 92 28 84 Level 1 30 | . 21 51 28 27 . . . . 70 7 50 15 Level 2 1 | . . . . . . . . . . . 21 . Level 3 . | . . . . . . . . . . . . . Level 4 . | . . . . . . . . . . . . . Level 5 . | . . . . . . . . . . . . . High Security . | . . . . . . . . . . . . . Max Security . | . . . . . . . . . . . . . Squads Dispatched 38 | . 2 3 2 6 . . . . 4 10 9 2 Investigation 4 | . 1 1 . 1 . . . . . . 1 . Extermination 12 | . . . . 4 . . . . 2 5 1 . Reinforcement 19 | . 1 2 2 1 . . . . 2 5 4 2 Assault . | . . . . . . . . . . . . . Garrison 3 | . . . . . . . . . . . 3 . Intercept . | . . . . . . . . . . . . . Searches Triggered . | . . . . . . . . . . . . . Data Miner Redirects 1 | . . . . . . . . . . . 1 . Construction Impeded 4 | . . . . . . . . . 2 2 . . Haulers Reinforced 1 | . . . . 1 . . . . . . . . Active Scanning Responses . | . . . . . . . . . . . . . Cargo Convoy Interrupts 1 | . . . . . . . . . . 1 . . Stealth | -11 -10 -9 -8 -7 -7 -7 -7 -6 -6 -5 -4 -3 --------- Run | Scr Mat Mat Mat Fac Low Low Dat Pro Fac Fac Fac Res Distress Signals 15 | . 2 . 3 3 . . . . 3 2 1 1 Communications Jammed 13 | . . . . . . . . . . 11 1 1 Distress Signals 3 | . . . . . . . . . . 1 1 1 Times Spotted 233 | . 19 24 33 31 9 5 . 11 19 29 44 9 Peak Tracking Total 19 | . 4 7 9 5 3 3 . 7 7 4 19 7 Tactical Retreats 24 | . 2 3 1 1 2 3 . . . 3 8 1 Traps | -11 -10 -9 -8 -7 -7 -7 -7 -6 -6 -5 -4 -3 ------- Run | Scr Mat Mat Mat Fac Low Low Dat Pro Fac Fac Fac Res Traps Triggered 10 | . 1 1 1 . . . . . 2 3 . 2 Indirectly . | . . . . . . . . . . . . . Trap Hack Attempts . | . . . . . . . . . . . . . Triggered . | . . . . . . . . . . . . . Disarmed . | . . . . . . . . . . . . . Reprogrammed . | . . . . . . . . . . . . . Reused . | . . . . . . . . . . . . . Traps Extracted . | . . . . . . . . . . . . . Installed . | . . . . . . . . . . . . . Triggered 1 | . . . . . . . . . . 1 . . Machines | -11 -10 -9 -8 -7 -7 -7 -7 -6 -6 -5 -4 -3 ---------- Run | Scr Mat Mat Mat Fac Low Low Dat Pro Fac Fac Fac Res Machines Disabled 15 | . . . . . . . . 1 6 1 7 . Max in Single Turn 4 | . . . . . . . . . 4 1 4 . Machines Sabotaged . | . . . . . . . . . . . . . Garrisons Compromised 1 | . . . . . . . . . . 1 . . Overloaded Fab Kills . | . . . . . . . . . . . . . Hacking | -11 -10 -9 -8 -7 -7 -7 -7 -6 -6 -5 -4 -3 --------- Run | Scr Mat Mat Mat Fac Low Low Dat Pro Fac Fac Fac Res Machines Accessed 34 | . 3 5 2 5 . 1 4 1 2 5 4 2 Terminals 23 | . 3 5 2 4 . . . 1 1 1 4 2 Fabricators 3 | . . . . 1 . . . . . 2 . . Repair Stations 1 | . . . . . . . . . . 1 . . Recycling Units . | . . . . . . . . . . . . . Scanalyzers 1 | . . . . . . . . . . 1 . . Garrison Access 1 | . . . . . . . . . 1 . . . Total Hacks 109 | . 6 14 6 15 . 1 30 4 3 16 10 4 Successful 70 | . 2 8 3 8 . 1 30 4 2 7 4 1 Failed 39 | . 4 6 3 7 . . . . 1 9 6 3 Catastrophic 7 | . . 1 . 1 . . . . 1 3 . 1 Database Lockouts . | . . . . . . . . . . . . . Manual 32 | . 3 2 5 5 . . . . 2 7 5 3 Terminals 60 | . 6 14 6 12 . . . 4 2 2 10 4 Fabricators 10 | . . . . 3 . . . . . 7 . . Repair Stations 2 | . . . . . . . . . . 2 . . Recycling Units . | . . . . . . . . . . . . . Scanalyzers 5 | . . . . . . . . . . 5 . . Garrison Access 1 | . . . . . . . . . 1 . . . Terminal Hacks 53 | . 2 7 1 4 . 1 30 4 . . 3 1 Record 15 | . . . . . . . 11 4 . . . . Part Schematic 11 | . . . . . . . 11 . . . . . Robot Schematic 6 | . . . . 1 . . 5 . . . . . Prototype ID Bank 3 | . . . . . . . 3 . . . . . Open Door 1 | . . . . . . 1 . . . . . . Level Access Points 1 | . . . . . . . . . . . 1 . Branch Access Points 2 | . . 1 . 1 . . . . . . . . Emergency Access Points 1 | . . . 1 . . . . . . . . . Alert Level 3 | . . 2 . . . . . . . . 1 . Unreport Threat 3 | . . 1 . . . . . . . . 1 1 Locate Traps 1 | . . . . 1 . . . . . . . . Dispatch Records 1 | . . 1 . . . . . . . . . . Hauler Manifests 2 | . 1 . . 1 . . . . . . . . Zone Layout 3 | . 1 2 . . . . . . . . . . Fabricator Hacks 2 | . . . . 1 . . . . . 1 . . Network Status 2 | . . . . 1 . . . . . 1 . . Repair Station Hacks 1 | . . . . . . . . . . 1 . . Scan Component 1 | . . . . . . . . . . 1 . . Recycling Unit Hacks . | . . . . . . . . . . . . . Scanalyzer 4 | . . . . . . . . . . 4 . . Insert Component 2 | . . . . . . . . . . 2 . . Analyze 2 | . . . . . . . . . . 2 . . Garrison Access Hacks . | . . . . . . . . . . . . . Unauthorized Hacks 10 | . . 1 2 3 . . . . 2 1 1 . Terminals 9 | . . 1 2 3 . . . . 2 . 1 . Track 2 | . . . . 1 . . . . 1 . . . Botnet 7 | . . 1 2 2 . . . . 1 . 1 . Fabricators 1 | . . . . . . . . . . 1 . . Fabnet 1 | . . . . . . . . . . 1 . . Repair Stations . | . . . . . . . . . . . . . Recycling Units . | . . . . . . . . . . . . . Scanalyzers . | . . . . . . . . . . . . . Garrison Access . | . . . . . . . . . . . . . Data Cores Recovered . | . . . . . . . . . . . . . Used . | . . . . . . . . . . . . . Hacking Detections 26 | . 3 4 1 5 . . . 1 2 4 4 2 Full Trace Events 2 | . . . . 1 . . . . . . 1 . Feedback Events . | . . . . . . . . . . . . . Feedback Blocked . | . . . . . . . . . . . . . Robot Schematics Acquired 6 | . . . . 1 . . 5 . . . . . Robots Built . | . . . . . . . . . . . . . Authchips . | . . . . . . . . . . . . . Time . | . . . . . . . . . . . . . Total Robot Build Rating . | . . . . . . . . . . . . . Part Schematics Acquired 13 | . . . . . . . 11 . . 2 . . Parts Built . | . . . . . . . . . . . . . Authchips . | . . . . . . . . . . . . . Time . | . . . . . . . . . . . . . Total Part Build Rating . | . . . . . . . . . . . . . Parts Repaired . | . . . . . . . . . . . . . Time . | . . . . . . . . . . . . . Parts Recycled . | . . . . . . . . . . . . . Recycled Matter . | . . . . . . . . . . . . . Retrieved Matter . | . . . . . . . . . . . . . Retrieved Components . | . . . . . . . . . . . . . Parts Scanalyzed 2 | . . . . . . . . . . 2 . . Part Schematics Acquired 2 | . . . . . . . . . . 2 . . Parts Damaged . | . . . . . . . . . . . . . Bothacking | -11 -10 -9 -8 -7 -7 -7 -7 -6 -6 -5 -4 -3 ------------ Run | Scr Mat Mat Mat Fac Low Low Dat Pro Fac Fac Fac Res Used RIF Installer . | . . . . . . . . . . . . . Robots Hacked 1 | . . . . . . . . . . . 1 . Non-combat . | . . . . . . . . . . . . . Combat 1 | . . . . . . . . . . . 1 . Robot Hacks Applied . | . . . . . . . . . . . . . Relay Couplers Released . | . . . . . . . . . . . . . Fabnet Peak Effective % 3 | . . . . . . . . . . . 3 1 Autooverrided 1 | . . . . . . . . . . . 1 . Robots Rewired . | . . . . . . . . . . . . . Allies Hacked . | . . . . . . . . . . . . . Hacks Repelled . | . . . . . . . . . . . . . Allies | -11 -10 -9 -8 -7 -7 -7 -7 -6 -6 -5 -4 -3 -------- Run | Scr Mat Mat Mat Fac Low Low Dat Pro Fac Fac Fac Res Total Allies 2 | . . . . . . . . 1 . . 1 . Largest Group 1 | . . . . . . . . 1 1 . 1 . Highest-Rated Group 116 | . . . . . . . . 96 96 . 116 . Highest-Rated Ally 116 | . . . . . . . . 96 96 . 116 . Total Orders . | . . . . . . . . . . . . . Ally Attacks 28 | . . . . . . . . 19 9 . . . Total Damage 1059 | . . . . . . . . 767 292 . . . Kills 5 | . . . . . . . . 5 . . . . Allies Corrupted 1 | . . . . . . . . . 1 . . . Allies Melted . | . . . . . . . . . . . . . Intel | -11 -10 -9 -8 -7 -7 -7 -7 -6 -6 -5 -4 -3 ------- Run | Scr Mat Mat Mat Fac Low Low Dat Pro Fac Fac Fac Res Robot Analysis Total . | . . . . . . . . . . . . . Derelict Logs Recovered 2 | . . . . . 1 1 . . . . . . Drone Launches . | . . . . . . . . . . . . . Drone Recoveries . | . . . . . . . . . . . . . Exploration | -11 -10 -9 -8 -7 -7 -7 -7 -6 -6 -5 -4 -3 ------------- Run | Scr Mat Mat Mat Fac Low Low Dat Pro Fac Fac Fac Res Turns Passed 13028 | . 716 1270 1676 1576 941 605 129 959 1001 2999 944 212 Spaces Moved 7215 | 1 382 660 797 732 497 355 78 538 484 1344 986 361 Core 28 | . . . . . . . . . . . 28 . Treads 5797 | . 151 660 797 732 497 355 78 538 484 1344 161 . Legs 232 | 1 231 . . . . . . . . . . . Wheels . | . . . . . . . . . . . . . Hover 39 | . . . . . . . . . . . . 39 Flight 1119 | . . . . . . . . . . . 797 322 Fastest Speed 25 | 120 120 160 160 167 167 167 167 167 165 164 25 31 Average Speed 147 | 120 135 160 162 168 167 167 167 167 165 191 61 39 Slowest Speed 410 | 120 160 160 170 170 167 167 167 167 167 246 410 80 Overloaded Moves . | . . . . . . . . . . . . . Propulsion Burnouts . | . . . . . . . . . . . . . Robots Hopped 1 | . . . . . . . . . . . 1 . Cave-ins Triggered . | . . . . . . . . . . . . . Exploration Rate (%) 39 | 2 60 49 50 17 64 54 68 64 11 28 24 17 Regions Visited 12 Branch Regions 4 Pre-discovered Areas 1 | . . . . . . . 1 . . . . . Known Exits Taken 8 | . . . . 1 1 1 1 1 1 1 1 . Unknown Exits Taken 4 | 1 1 1 1 . . . . . . . . . Scrap Searched 4 | . . . . . . 1 . 3 . . . . Spaces Dug 65 | . . . . 5 13 . . 19 . 10 10 8 Terrain Destroyed 324 | . . 36 29 10 30 . . 62 35 52 62 8 Melee 24 | . . . . 1 . . . . . 5 10 8 Projectile 62 | . . . . . . . . 3 10 31 18 . AOE 238 | . . 36 29 9 30 . . 59 25 16 34 . Terrain Rammed . | . . . . . . . . . . . . . Walls Destroyed . | . . . . . . . . . . . . . Machines Disabled . | . . . . . . . . . . . . . Actions | -11 -10 -9 -8 -7 -7 -7 -7 -6 -6 -5 -4 -3 --------- Run | Scr Mat Mat Mat Fac Low Low Dat Pro Fac Fac Fac Res Total 8589 | . 486 797 1007 939 549 364 77 571 604 1591 1195 409 Wait 365 | . 38 37 56 92 9 . . 4 19 67 36 7 Move 7201 | . 381 659 796 731 496 354 77 537 483 1343 983 361 Hop 1 | . . . . . . . . . . . 1 . Pick Up 88 | . 5 17 12 9 2 . . 1 7 23 10 2 Fast Attach 57 | . 1 3 2 2 1 3 . 1 8 11 20 5 Attach 48 | . . 1 11 6 1 2 . 1 3 10 9 4 Detach 14 | . . . 1 . . 3 . . 1 2 3 4 Swap 85 | . 5 10 16 14 2 . . 9 6 19 4 . Drop 94 | . 4 18 13 11 3 . . 2 16 21 6 . Fire 508 | . 52 47 96 73 35 2 . 16 43 85 59 . Melee 34 | . . . 2 1 . . . . . 6 14 11 Ram . | . . . . . . . . . . . . . Kick . | . . . . . . . . . . . . . Crush 14 | . . 5 2 . . . . . 1 4 2 . Escape Stasis 15 | . . . . . . . . . . . . 15 Rewire 65 | . . . . . . . . . 17 . 48 . Trap . | . . . . . . . . . . . . . Miscellaneous . | . . . . . . . . . . . . . Route ------- -11/Scrapyard -10/Materials (discovered 2 exits: *Mat / [*Min]) -9/Materials (discovered 4 exits: *Mat / *Min x2 / *Sto) -8/Materials -7/Factory (discovered 2 exits: *Low x2) -7/Lower Caves -7/Lower Caves -7/Data Miner -6/Proximity Caves -6/Factory (discovered 2 exits: *Fac / Low) -5/Factory (discovered 2 exits: *Fac / *Upp) -4/Factory (discovered 6 exits: *Res x4 / [*Upp x2]) -3/Research History --------- Turn | Location | Event 1 | -11/Scrapyard | Discovered new exit (range 0) 1 | -11/Scrapyard | Entered Materials 283 | -10/Materials | Discovered new exit (range 12) 316 | -10/Materials | Build established: Mutant 382 | -10/Materials | Core integrity fell below 50% 509 | -10/Materials | Discovered new exit (range 15) 717 | -10/Materials | Entered another Materials area 717 | -9/Materials | Evolved 2 slots: Propulsion x1, Utility x1 757 | -9/Materials | Identified exit to Mines 757 | -9/Materials | Identified exit to Storage 1188 | -9/Materials | Discovered new exit (range 4) 1413 | -9/Materials | Build established: Scavenger-Mutant 1858 | -9/Materials | Destroyed 7 combat bots 1987 | -9/Materials | Entered another Materials area 1987 | -8/Materials | Evolved 2 slots: Utility x2 2868 | -8/Materials | Lost 5 parts (1p2n1u1w) 3607 | -8/Materials | Discovered new exit (range 9) 3663 | -8/Materials | Entered Factory 3663 | -7/Factory | Evolved 2 slots: Propulsion x1, Utility x1 3735 | -7/Factory | Discovered new exit (range 10) 3762 | -7/Factory | Identified exit to Lower Caves 4030 | -7/Factory | Build established: Skirmisher 5239 | -7/Factory | Entered Lower Caves 5246 | -7/Lower Caves | Build established: Mutant 5719 | -7/Lower Caves | Learned 4 Factory zone layouts 5945 | -7/Lower Caves | Encountered a Warlord checkpoint 5973 | -7/Lower Caves | Discovered new exit (range 12) 5988 | -7/Lower Caves | Identified exit to Lower Caves 6119 | -7/Lower Caves | Attracted the attention of an 0b10 checkpoint 6180 | -7/Lower Caves | Entered another Lower Caves area 6276 | -7/Lower Caves | Spotted B-75 Beast 6565 | -7/Lower Caves | Build established: Skirmisher 6690 | -7/Lower Caves | Learned Factory stockpile data 6770 | -7/Lower Caves | Discovered new exit (range 9) 6784 | -7/Lower Caves | Identified exit to Data Miner 6785 | -7/Lower Caves | Entered Data Miner 6785 | -7/Data Miner | Discovered new exit (range 6) 6817 | -7/Data Miner | Met Data Miner 6846 | -7/Data Miner | Learned location of Section 7 (-2) 6846 | -7/Data Miner | Acquired the access code to Warlord's prototype stash 6874 | -7/Data Miner | Received God Mode back door access code from Data Miner 6912 | -7/Data Miner | Identified exit to Proximity Caves 6914 | -7/Data Miner | Entered Proximity Caves 7058 | -6/Proximity Caves | Escorted by Enhanced Grunt 7715 | -6/Proximity Caves | Attracted the attention of an 0b10 base 7779 | -6/Proximity Caves | Discovered new exit (range 15) 7807 | -6/Proximity Caves | Identified exit to Factory 7873 | -6/Proximity Caves | Entered Factory 7873 | -6/Factory | Accompanied by 1 ally 7873 | -6/Factory | Evolved 2 slots: Utility x2 7874 | -6/Factory | Identified exit to Lower Caves 8017 | -6/Factory | Spotted B-75 Beast 8038 | -6/Factory | Destroyed B-75 Beast 8852 | -6/Factory | Discovered new exit (range 5) 8859 | -6/Factory | Identified exit to Factory 8874 | -6/Factory | Entered another Factory area 8874 | -5/Factory | Evolved 2 slots: Propulsion x2 9199 | -5/Factory | Discovered new exit (range 3) 9202 | -5/Factory | Identified exit to Upper Caves 9341 | -5/Factory | Build established: Scavenger-Skirmisher 9681 | -5/Factory | Cargo convoy interrupted 9721 | -5/Factory | Build established: Mutant 10234 | -5/Factory | Build established: Scavenger-Mutant 11065 | -5/Factory | Build established: Mutant 11803 | -5/Factory | Discovered new exit (range 15) 11823 | -5/Factory | Lost 3 parts (1n2u) 11872 | -5/Factory | Identified exit to Factory 11873 | -5/Factory | Entered another Factory area 11873 | -4/Factory | Evolved 2 slots: Power x1, Weapon x1 12304 | -4/Factory | Garrison activated, responded to threat 12461 | -4/Factory | Released all parts (13) 12470 | -4/Factory | Lost 9 parts (4n3u2w) 12678 | -4/Factory | Identified exit to Research 12679 | -4/Factory | Incoming investigation squad redirected 12681 | -4/Factory | Discovered new exit (range 14) 12760 | -4/Factory | Spotted B-86 Titan 12782 | -4/Factory | Lost 5 parts (4n1u) 12815 | -4/Factory | Discovered new exit (range 17) 12817 | -4/Factory | Entered Research 12817 | -3/Research | Evolved 2 slots: Utility x2 12935 | -3/Research | Lost 8 parts (1p4n3u) 12990 | -3/Research | Found Prototype Processor 12990 | -3/Research | Identified Exp. Melee Analysis Suite 13003 | -3/Research | Found Prototype Device 13003 | -3/Research | Identified Exp. EM Disruption Field 13004 | -3/Research | System corruption reached 10% 13029 | -3/Research | Self-destructed Last Messages --------------- 12990_ Malfunction: Enh. Optical Array damaged (-10). 12991_ Discarded Faulty Exp. Melee Analysis Suite. 12994_ System corrupted: IFF burst signal emitted. 12995_ Acquired Unknown Hover Unit. 12995_ Identified Imp. Antigrav System. 13003_ Acquired Prototype Device. 13003_ Identified Exp. EM Disruption Field. 13003_ Malfunction: System corrupted (+2). 13007_ Acquired Prototype Hover Unit. 13007_ Identified Cld. Antigrav System. 13009_ G-67 Veteran destroyed. 13009_ Field Propulsion Array destroyed. 13011_ System corrupted: Component data lost. 13011_ C-30 ARC bursts open, deploying its payload. 13011_ P-80 Master unfolds itself. 13020_ The unstable cave ceiling collapses. 13020_ P-80 Master resets U-05 Engineer, system corruption cleaned. 13025_ ALERT: Cargo convoy en route, clear transfer corridor. 13025_ Enh. Optical Array destroyed. 13028_ Force Lance destroyed. Map ----- +----------------------------------------------------+ | ???????????# | | ???????????# | | ???????????# ! | | ???????????# | | ???????????+ | | ???????????# #?########### | | ???????????# ###"""T"""##" | | ???????????# # # | | ???????????# # # | | ???????????# # # | | ???????????# # # | | ???????????# + # | | ???????????# # # | | ???????????# # # | | ???????????# ############# | | ???????????# | | ???????????# | | ???????????# | | ???????????+ | | ???????????# ######## # | | ???????????# #??## * | | ???????????# " #### % | | ???????????##%" # | | ?????#+##+#?#" # | | ???### #?# # | | ####@# ### # # | | # # # | | # # / | | # # # ] | | # pp# #### | | # p + | | # # ########### ## # | | # # #?????????? ?# | | # # ??????? # | | # # ####??????? # | | ########## #??????????? # | | ?????????# #????????????# | | ?????????# ???????????? | | ?????????# ###??????????? | | ?????????# #????????????? | | ????????? #????????????? | | ????????? #????????????? | | ????????? #????????????? | | ???????? #????????????? | | ???????? #????????????? | | ???????? #????????????? | | ??????? #????????????? | | ??????? #????????????? | | ??????? #????????????? | | ??????? +????????????? | +----------------------------------------------------+ Best States ------------- Heat Dissipation 83 Energy Generation 31 Energy Capacity 415 Matter Stores 590 Matter Capacity 600 Sight Range 22 Robot Scan Range 15 Terrain Scan Range 24 Terrain Scan Density 10 Jamming Range 14 Armor Coverage 825 Core Shielding 20 Evasion (%) 64 Targeting Accuracy 5 Recoil Reduction 6 Kinecelleration 40 Defensive Hacking 14 Item Schematics ----------------- Combat Drone Bay | -7/Data Miner | Free Lgt. Regenerative Plating | -7/Data Miner | Free Cld. Cesium-ion Thruster | -7/Data Miner | Free Gravity Neutralizer | -7/Data Miner | Free Imp. Lightning Gun | -7/Data Miner | Free Field Propulsion Drive | -7/Data Miner | Free Adv. Field Recycling Unit | -7/Data Miner | Free Enh. Gauss Cannon | -7/Data Miner | Free Adv. Sensor Array | -7/Data Miner | Free Imp. Recalibrator | -7/Data Miner | Free Adv. Trap Scanner | -7/Data Miner | Free Arm. Treads | -5/Factory | Scanalyzed Adv. Drone Bay | -5/Factory | Scanalyzed Robot Schematics ------------------ H-55 Commando | -7/Factory | Hacked M-22 Extractor | -7/Data Miner | Free R-10 Processor | -7/Data Miner | Free G-47 Trooper | -7/Data Miner | Free G-50 Soldier | -7/Data Miner | Free B-48 Gladiator | -7/Data Miner | Free Fabricated ------------ Nothing Alien Tech Used ----------------- None Achievements -------------- None Challenges ------------ None Game ------ Seed LauncherNetworkReplicator Manual? 0 Play Time 01:34:34 Cumulative 287.7 hours Start 2022.05.31 @ 16:18:01 End 2022.06.01 @ 12:13:51 Sessions 1 Manual Loads 0 Difficulty Rogue Special Mode None Game No. 373 Rogue 372 Adventurer 0 Explorer 1 Win Type - Total 6 Types 5/0/0/1/0/0/0/0/0 Lore% 68 Gallery% 80 Achievement% 58 Wizard Run 0 Options --------- ASCII 0 Keyboard 1 Movement Vi Keybinds 0 Fullscreen 1 Font 18/SmallcapsGlow Map View 76x50 Tactical HUD 1 Map Filters NONE Filters NONE Steam 1 RUN: 7bf35720-4f01-49de-b228-4d541054bf50